bitfinex-derivatives/quotes_BTCF0:USTF0_20240829
["timestamp","ask_amount","ask_price","bid_price","bid_amount"]
[1724969882661,0.08321741,59217.0,59216.0,0.3608]
[1724969882958,0.09966702,59223.0,59216.0,0.3608]
[1724969882959,0.00025345,59220.0,59216.0,0.3608]
[1724969883160,0.00025345,59220.0,59219.0,0.3608]
[1724969884562,0.00025345,59220.0,59219.0,0.3618]
[1724969885757,0.00025345,59220.0,59219.0,0.8684]
[1724969886064,0.00025345,59220.0,59219.0,1.0802]
[1724969886471,0.23434441,59237.0,59234.0,0.084389]
[1724969886764,0.62201741,59246.0,59236.0,1.0816]
[1724969886765,0.00244001,59246.0,59236.0,1.0816]
[1724969886963,0.23434441,59248.0,59245.0,0.3608]
[1724969887755,0.50636,59247.0,59246.0,0.3608]
[1724969888073,0.68673,59248.0,59246.0,0.3608]
[1724969888259,0.50636,59247.0,59246.0,0.3608]
[1724969888572,0.5389585,59247.0,59246.0,0.3608]
[1724969888756,1.1389585,59247.0,59246.0,0.3608]
[1724969889055,0.03259833,59247.0,59246.0,0.3608]
[1724969890160,0.53895833,59247.0,59246.0,0.3608]
[1724969890354,1.13895833,59247.0,59246.0,0.002]
[1724969890656,0.03259833,59247.0,59246.0,0.002]
[1724969891053,0.084367,59250.0,59246.0,0.002]
[1724969891261,0.03259794,59249.0,59246.0,0.002]
[1724969891461,0.084367,59250.0,59246.0,0.002]
[1724969891857,0.09895638,59247.0,59246.0,0.002]
[1724969892063,0.084367,59250.0,59246.0,0.002]
[1724969892463,0.09890637,59247.0,59246.0,0.002]
[1724969892656,0.09890822,59247.0,59246.0,0.002]
[1724969893168,0.09890822,59247.0,59246.0,0.001]
[1724969893462,0.09890822,59248.0,59246.0,0.086372]
[1724969893663,0.09890822,59249.0,59246.0,0.086372]
[1724969893961,0.09890822,59250.0,59246.0,0.086372]
[1724969894464,0.09890822,59251.0,59247.0,0.08437]
[1724969894659,0.09890822,59251.0,59248.0,0.084369]
[1724969894867,0.09916145,59252.0,59248.0,0.084369]
[1724969895256,0.09916145,59252.0,59251.0,0.3608]
[1724969895257,0.00025323,59252.0,59251.0,0.3608]
[1724969895660,0.08260494,59252.0,59251.0,0.3608]
[1724969895863,0.00025323,59252.0,59251.0,0.3608]
[1724969896171,0.00025323,59252.0,59251.0,1.551485]
[1724969896365,0.08235171,59262.0,59261.0,0.084351]
[1724969896668,0.08235171,59268.0,59261.0,0.3608]
[1724969896858,0.59514441,59272.0,59261.0,0.3608]
[1724969896859,0.084344,59266.0,59261.0,0.3608]
[1724969897164,0.23666441,59272.0,59261.0,0.3608]
[1724969897165,0.3608,59271.0,59261.0,0.3608]
[1724969897860,0.084344,59266.0,59261.0,0.3608]
[1724969898865,0.084344,59266.0,59261.0,0.3618]
[1724969899064,0.084344,59266.0,59261.0,0.3628]
[1724969899661,0.084337,59271.0,59263.0,0.084348]
[1724969899860,0.084337,59271.0,59268.0,0.3608]
[1724969900263,0.00025323,59272.0,59268.0,0.3608]
[1724969900466,0.00025323,59272.0,59271.0,0.084337]
[1724969901263,0.3654,59296.0,59271.0,0.86616]
[1724969901569,0.23434441,59297.0,59291.0,0.36]
[1724969901773,0.58002,59302.0,59296.0,0.36]
[1724969901963,0.5777,59302.0,59296.0,0.36]
[1724969902165,0.00232,59306.0,59301.0,0.084294]
[1724969902366,0.00025047,59309.0,59305.0,0.3608]
[1724969902669,0.36105047,59309.0,59299.0,0.3608]
[1724969902864,0.3608,59303.0,59298.0,0.00025297]
[1724969903060,0.084296,59300.0,59298.0,0.00025297]
[1724969903667,0.684296,59300.0,59298.0,0.00025297]
[1724969903870,0.50592,59299.0,59298.0,0.00025297]
[1724969904068,0.50592,59299.0,59298.0,1e-08]
[1724969904269,0.084296,59300.0,59298.0,1e-08]
[1724969904780,0.084289,59305.0,59298.0,1e-08]
[1724969905074,0.084289,59305.0,59298.0,0.00100001]
[1724969905269,0.3608,59308.0,59298.0,0.00100001]
[1724969905664,0.084286,59307.0,59298.0,0.00100001]
[1724969905871,0.084286,59307.0,59298.0,0.00200001]
[1724969906069,0.3608,59308.0,59298.0,0.08629801]
[1724969906277,0.3608,59308.0,59301.0,0.36]
[1724969906475,0.09884128,59311.0,59305.0,0.3608]
[1724969906771,0.5777,59316.0,59302.0,0.3608]
[1724969906973,0.5777,59316.0,59301.0,0.36]
[1724969906974,0.5777,59316.0,59307.0,0.3608]
[1724969907272,0.084282,59310.0,59307.0,0.3608]
[1724969907476,0.084273,59316.0,59308.0,0.36]
[1724969907671,0.3608,59313.0,59302.0,0.36]
[1724969907875,0.3608,59318.0,59302.0,0.36]
[1724969908473,0.084284,59308.0,59302.0,0.36]
[1724969908969,0.3608,59319.0,59301.0,0.3608]
[1724969909166,0.084286,59307.0,59302.0,0.001]
[1724969909472,0.2091,59320.0,59302.0,0.001]
[1724969909473,0.3608,59303.0,59302.0,0.001]
[1724969909667,0.3608,59303.0,59302.0,0.002]
[1724969909874,1.66948,59303.0,59298.0,1e-08]
[1724969910077,0.084297,59299.0,59298.0,1e-08]
[1724969910280,0.168594,59299.0,59298.0,1e-08]
[1724969910471,1.66469535,59299.0,59298.0,1e-08]
[1724969911080,1.190217,59299.0,59298.0,1e-08]
[1724969911278,0.590217,59299.0,59298.0,1e-08]
[1724969911577,1.274514,59299.0,59298.0,1e-08]
[1724969912081,1.274514,59299.0,59298.0,0.00100001]
[1724969912578,1.274514,59299.0,59298.0,0.00200001]
[1724969913366,1.274514,59299.0,59298.0,0.00100001]
[1724969913572,0.084297,59299.0,59298.0,0.00200001]
[1724969913772,1.190217,59299.0,59298.0,0.00200001]
[1724969913971,0.590217,59299.0,59298.0,0.00200001]
[1724969914485,0.084297,59299.0,59298.0,0.00100001]
[1724969914669,0.084297,59299.0,59298.0,0.00200001]
[1724969914670,0.590217,59299.0,59298.0,0.00200001]
[1724969914975,0.084297,59299.0,59298.0,0.00200001]
[1724969915372,0.3608,59311.0,59301.0,0.084294]
[1724969915574,0.08453347,59309.0,59301.0,0.445094]
[1724969915768,0.084285,59308.0,59303.0,0.36]
[1724969916678,0.084289,59305.0,59301.0,0.3608]
[1724969916984,1e-08,59309.0,59304.0,0.3608]
[1724969917169,0.3608,59328.0,59308.0,0.7208]
[1724969917480,0.7732,59339.0,59327.0,0.3608]
[1724969917779,0.1983,59339.0,59333.0,0.3608]
[1724969917975,0.084243,59337.0,59333.0,0.3608]
[1724969918483,0.00025296,59341.0,59333.0,0.3608]
[1724969918973,0.084248,59334.0,59329.0,0.00025297]
[1724969919173,0.3608,59338.0,59329.0,0.00025297]
[1724969919376,0.084249,59333.0,59329.0,0.00025297]
[1724969920285,0.3608,59338.0,59329.0,0.00025297]
[1724969920286,0.3608,59338.0,59329.0,0.00125297]
[1724969920779,0.445052,59331.0,59313.0,0.3608]
[1724969920979,0.084284,59309.0,59308.0,0.3608]
[1724969921187,0.084273,59316.0,59308.0,0.3608]
[1724969921387,0.3608,59319.0,59308.0,0.3608]
[1724969921388,0.084275,59315.0,59308.0,0.3608]
[1724969921683,0.497854,59330.0,59308.0,0.3608]
[1724969921684,0.3608,59320.0,59313.0,0.3608]
[1724969921871,0.084278,59312.0,59311.0,0.00025297]
[1724969922875,0.590078,59312.0,59311.0,0.00025297]
[1724969923076,0.084293,59302.0,59301.0,0.3608]
[1724969923678,0.084271,59318.0,59311.0,0.001]
[1724969923874,0.3608,59328.0,59316.0,0.3608]
[1724969924078,0.3608,59328.0,59316.0,0.36105297]
[1724969924079,0.36105297,59328.0,59316.0,0.36105297]
[1724969924289,0.084271,59317.0,59316.0,0.00025297]
[1724969924488,0.768542,59317.0,59316.0,9.7e-07]
[1724969924789,0.08429,59304.0,59303.0,0.3608]
[1724969925284,0.3608,59318.0,59303.0,1.22668]
[1724969925480,0.3608,59318.0,59309.0,0.3608]
[1724969925984,0.08428,59311.0,59309.0,0.3608]
[1724969927581,0.084283,59309.0,59308.0,0.00025297]
[1724969928002,1.190123,59309.0,59308.0,0.00025297]
[1724969928694,1.190123,59309.0,59308.0,0.00125297]
[1724969930088,0.590123,59309.0,59308.0,0.00225297]
[1724969930591,1.190123,59309.0,59308.0,0.00225297]
[1724969930787,1.274406,59309.0,59308.0,0.00225297]
[1724969930989,1.274406,59309.0,59308.0,0.00100001]
[1724969931189,0.674406,59309.0,59308.0,0.002]
[1724969931379,0.168566,59309.0,59308.0,0.002]
[1724969931584,0.3608,59311.0,59308.0,0.002]
[1724969931993,0.11424245,59323.0,59309.0,0.3608]
[1724969932296,0.084281,59310.0,59309.0,0.3608]
[1724969932506,0.44507,59318.0,59308.0,0.002]
[1724969932507,0.084283,59309.0,59308.0,0.002]
[1724969933399,0.084283,59309.0,59308.0,0.3628]
[1724969934493,0.084283,59309.0,59308.0,0.002]
[1724969936297,0.084283,59309.0,59308.0,0.3628]
[1724969937087,0.084283,59309.0,59308.0,0.001]
[1724969937291,0.084286,59307.0,59304.0,0.00025297]
[1724969937592,0.084273,59316.0,59304.0,0.00025297]
[1724969937593,0.084287,59306.0,59304.0,0.00025297]
[1724969938600,0.3608,59318.0,59304.0,0.00025297]
[1724969938601,0.084288,59305.0,59304.0,0.00125297]
[1724969939310,0.674456,59305.0,59304.0,0.00125297]
[1724969939599,0.674456,59305.0,59304.0,1e-08]
[1724969939801,2.079544,59305.0,59304.0,1e-08]
[1724969940193,0.3608,59305.0,59298.0,0.36]
[1724969940394,0.445089,59305.0,59304.0,0.08429]
[1724969940696,0.445089,59305.0,59304.0,0.001]
[1724969940897,0.084289,59305.0,59304.0,0.002]
[1724969941301,0.084289,59305.0,59304.0,0.001]
[1724969941597,0.00025297,59310.0,59304.0,0.001]
[1724969941598,0.084283,59309.0,59304.0,0.7208]
[1724969941801,0.00025297,59310.0,59299.0,0.2193687]
[1724969941802,0.084288,59306.0,59299.0,0.2193687]
[1724969942193,0.084288,59305.0,59304.0,0.001]
[1724969943500,0.084288,59305.0,59304.0,0.002]
[1724969943703,0.20074881,59305.0,59304.0,0.001]
[1724969943999,0.084288,59305.0,59304.0,0.001]
[1724969944204,0.16859,59300.0,59299.0,0.0061687]
[1724969944502,0.13329565,59300.0,59286.0,0.3608]
[1724969944705,0.11683498,59292.0,59286.0,0.3608]
[1724969944899,0.11683498,59294.0,59286.0,0.3608]
[1724969945204,0.084304,59294.0,59293.0,0.3608]
[1724969945407,0.083304,59294.0,59293.0,0.3608]
[1724969946008,0.00025297,59299.0,59296.0,0.084301]
[1724969946208,0.08455097,59299.0,59297.0,0.2108]
[1724969946518,0.08455097,59299.0,59298.0,0.3608]
[1724969946713,0.084304,59294.0,59293.0,0.3608]
[1724969947208,0.12559676,59294.0,59293.0,0.3608]
[1724969947504,0.084313,59288.0,59287.0,0.2108]
[1724969947707,0.20112148,59288.0,59287.0,0.2108]
[1724969947915,0.084313,59288.0,59287.0,0.2108]
[1724969948206,0.084313,59288.0,59286.0,0.3608]
[1724969948207,0.084314,59287.0,59286.0,0.3608]
[1724969948600,0.12561211,59287.0,59286.0,0.3608]
[1724969948799,0.084314,59287.0,59286.0,0.3608]
[1724969950203,0.084314,59287.0,59286.0,0.3678]
[1724969950401,0.079314,59287.0,59286.0,0.3678]
[1724969951208,0.079314,59287.0,59286.0,0.3738]
[1724969951805,0.079314,59287.0,59286.0,0.013]
[1724969952006,0.163628,59287.0,59286.0,0.013]
[1724969952403,0.163628,59287.0,59272.0,0.3608]
[1724969952404,0.084316,59286.0,59272.0,0.3608]
[1724969952607,0.084334,59273.0,59272.0,0.3608]
[1724969952911,0.00025297,59285.0,59272.0,0.7208]
[1724969952912,0.11684056,59282.0,59272.0,0.7208]
[1724969953100,0.08456997,59285.0,59278.0,0.36]
[1724969953299,0.00025297,59285.0,59284.0,0.084318]
[1724969954604,0.00025297,59285.0,59281.0,0.2144]
[1724969954912,0.084321,59282.0,59281.0,0.2144]
[1724969955110,0.00025297,59285.0,59284.0,0.001]
[1724969955111,0.01425297,59285.0,59284.0,0.001]
[1724969956004,0.09856997,59285.0,59284.0,0.001]
[1724969956206,0.11156997,59285.0,59284.0,0.002]
[1724969957305,0.09756997,59285.0,59284.0,0.001]
[1724969957506,0.10956997,59285.0,59284.0,0.001]
[1724969958118,0.19388697,59285.0,59284.0,0.001]
[1724969958315,0.19588697,59285.0,59284.0,0.002]
[1724969960515,0.098317,59285.0,59284.0,0.002]
[1724969960708,0.084317,59285.0,59284.0,0.002]
[1724969960908,0.168634,59285.0,59284.0,0.002]
[1724969961103,0.084317,59285.0,59284.0,0.002]
[1724969962318,0.084324,59280.0,59279.0,0.00025296]
[1724969963720,0.093324,59280.0,59279.0,0.00225296]
[1724969963918,0.13462737,59280.0,59279.0,0.00225296]
[1724969964218,0.009,59280.0,59279.0,0.08657796]
[1724969964414,0.009,59280.0,59279.0,1.19265796]
[1724969966816,0.00223598,59280.0,59279.0,1.19265796]
[1724969967016,0.11655132,59289.0,59288.0,0.084313]
[1724969967210,0.00025297,59290.0,59288.0,0.805913]
[1724969967416,0.00025297,59290.0,59289.0,0.7151]
[1724969967814,0.00025297,59290.0,59289.0,1.3151]
[1724969968121,0.00025297,59290.0,59289.0,0.7151]
[1724969968419,0.00025297,59290.0,59289.0,1.3151]
[1724969969823,0.08806251,59301.0,59298.0,0.084298]
[1724969970017,0.1360335,59308.0,59300.0,0.3608]
[1724969970018,0.08806251,59302.0,59300.0,0.3608]
[1724969970218,0.04128596,59301.0,59300.0,0.3608]
[1724969971315,0.11668411,59301.0,59300.0,0.3608]
[1724969972015,0.00025297,59306.0,59300.0,0.3608]
[1724969972214,0.00025297,59306.0,59305.0,0.3608]
[1724969973109,0.00025297,59306.0,59305.0,0.445088]
[1724969974124,0.00025297,59306.0,59305.0,0.446088]
[1724969974622,0.00025297,59306.0,59305.0,0.447088]
[1724969979328,0.04153188,59306.0,59305.0,0.447088]
[1724969980523,0.11668375,59306.0,59305.0,1.552928]
[1724969980922,0.00025297,59306.0,59305.0,1.552928]
[1724969982024,0.00025297,59306.0,59305.0,1.842928]
[1724969982523,0.00025297,59306.0,59305.0,0.737088]
[1724969982728,0.00025297,59306.0,59305.0,1.242928]
[1724969984322,0.00025297,59306.0,59305.0,0.737088]
[1724969985318,0.00025297,59306.0,59305.0,1.097888]
[1724969987037,0.00025297,59306.0,59305.0,0.376288]
[1724969987231,0.00025297,59306.0,59305.0,1.097888]
[1724969988330,0.08453997,59306.0,59305.0,0.002]
[1724969988537,0.08429,59304.0,59303.0,0.3608]
[1724969989635,0.2013,59305.0,59303.0,0.3608]
[1724969989835,0.00025297,59306.0,59305.0,0.084288]
[1724969990025,0.00025297,59306.0,59303.0,0.3618]
[1724969990026,0.084288,59305.0,59303.0,0.3618]
[1724969990225,0.08429,59304.0,59303.0,0.3618]
[1724969990431,0.08429,59304.0,59303.0,0.3628]
[1724969991032,0.08429,59304.0,59303.0,0.3618]
[1724969992635,0.08429,59304.0,59303.0,0.3608]
[1724969992827,0.08429,59304.0,59303.0,0.3618]
[1724969993328,0.00025297,59306.0,59303.0,0.3628]
[1724969994032,0.04128588,59305.0,59303.0,0.3628]
[1724969994228,0.0412859,59304.0,59303.0,0.3618]
[1724969994427,0.0412859,59304.0,59303.0,0.3628]
[1724969994838,0.0412859,59304.0,59303.0,0.44709]
[1724969995038,0.08453997,59306.0,59303.0,0.44709]
[1724969995241,0.04128425,59305.0,59303.0,0.44709]
[1724969995441,0.04128425,59304.0,59303.0,0.44709]
[1724969995842,0.04128425,59305.0,59303.0,0.44709]
[1724969996140,0.04128425,59305.0,59303.0,0.3628]
[1724969996338,0.08453997,59306.0,59304.0,0.08429]
[1724969996531,0.04128405,59305.0,59304.0,0.08429]
[1724969997739,0.04128405,59305.0,59304.0,0.08529]
[1724969998040,0.12557205,59305.0,59304.0,0.001]
[1724969998339,0.63145205,59305.0,59304.0,0.001]
[1724969998533,0.6831988,59305.0,59304.0,0.001]
[1724969998733,0.6831988,59305.0,59304.0,0.002]
[1724969999045,0.83280356,59305.0,59304.0,0.002]
[1724969999940,0.24263556,59305.0,59304.0,0.002]
[1724970000138,0.04128405,59305.0,59304.0,0.002]
[1724970000443,0.14985773,59306.0,59304.0,0.002]
[1724970000827,0.04128654,59305.0,59304.0,0.002]
[1724970001028,0.00025297,59306.0,59304.0,0.002]
[1724970001835,0.084288,59305.0,59304.0,0.002]
[1724970002732,0.084288,59305.0,59304.0,0.001]
[1724970003039,0.084288,59305.0,59304.0,0.002]
[1724970003246,0.00025297,59306.0,59305.0,0.084288]
[1724970003536,0.00025297,59306.0,59305.0,0.735088]
[1724970003948,0.13355856,59321.0,59305.0,1.75664]
[1724970004141,0.13355856,59324.0,59323.0,0.084263]
[1724970004332,0.14960476,59332.0,59328.0,0.084255]
[1724970004636,0.00240001,59338.0,59331.0,0.445051]
[1724970004637,0.00232,59338.0,59331.0,0.445051]
[1724970004840,0.084248,59334.0,59331.0,0.3608]
[1724970005034,0.00025297,59338.0,59331.0,0.3608]
[1724970005235,0.0412679,59337.0,59331.0,0.3608]
[1724970005443,0.00025297,59338.0,59336.0,0.3608]
[1724970005946,0.00025297,59338.0,59336.0,0.445043]
[1724970006741,0.00025297,59338.0,59336.0,0.446043]
[1724970007348,1e-08,59338.0,59336.0,0.446043]
[1724970007637,1e-08,59338.0,59337.0,0.2148]
[1724970008832,1e-08,59338.0,59337.0,0.2158]
[1724970009037,0.084216,59357.0,59337.0,1.3214]
[1724970009233,0.03110043,59358.0,59352.0,0.29]
[1724970009430,0.084212,59359.0,59352.0,0.29]
[1724970009732,0.084214,59358.0,59352.0,0.29]
[1724970009937,0.084215,59357.0,59352.0,0.29]
[1724970010537,0.50544,59357.0,59351.0,0.3608]
[1724970010742,0.50544,59357.0,59349.0,0.00025275]
[1724970010743,0.084224,59350.0,59349.0,0.00025275]
[1724970012044,0.084238,59341.0,59339.0,0.3608]
[1724970013635,0.084238,59341.0,59339.0,0.3628]
[1724970014144,0.00025275,59346.0,59344.0,0.084233]
[1724970014348,0.00025275,59346.0,59345.0,0.6508]
[1724970014535,0.00025275,59346.0,59345.0,0.8667]
[1724970015044,0.084217,59355.0,59345.0,0.8667]
[1724970015242,0.084217,59355.0,59354.0,0.3608]
[1724970015540,0.35596703,59369.0,59354.0,0.3608]
[1724970015541,0.084204,59365.0,59354.0,0.3608]
[1724970015745,0.084198,59369.0,59364.0,0.7216]
[1724970015937,0.2052,59377.0,59364.0,0.3608]
[1724970015938,0.03056994,59373.0,59364.0,0.3608]
[1724970016246,0.0842,59367.0,59364.0,0.3608]
[1724970016630,0.084203,59365.0,59364.0,0.3608]
[1724970016838,0.084203,59365.0,59361.0,0.65105275]
[1724970017036,0.084203,59365.0,59364.0,0.001]
[1724970017535,0.084203,59365.0,59364.0,0.002]
[1724970019140,0.950363,59365.0,59364.0,0.002]
[1724970019440,0.950363,59365.0,59364.0,0.001]
[1724970019633,1.550363,59365.0,59353.0,0.3608]
[1724970019836,0.444995,59371.0,59364.0,0.3608]
[1724970020043,0.4309,59370.0,59364.0,0.3608]
[1724970020439,0.084203,59365.0,59364.0,0.3608]
[1724970020936,0.08421,59360.0,59359.0,0.00025275]
[1724970022939,0.08421,59360.0,59359.0,0.00125275]
[1724970023733,0.52922,59360.0,59359.0,0.00125275]
[1724970023942,1.4662,59360.0,59345.0,0.084231]
[1724970024138,1.4662,59360.0,59342.0,0.3608]
[1724970024139,0.3608,59351.0,59342.0,0.3608]
[1724970024347,0.084234,59343.0,59342.0,0.3608]
[1724970024537,0.084247,59334.0,59328.0,0.445055]
[1724970025045,0.084247,59334.0,59330.0,0.084253]
[1724970025852,0.084252,59331.0,59328.0,0.00025275]
[1724970026045,0.3608,59337.0,59328.0,0.00025275]
[1724970026046,0.084244,59337.0,59330.0,0.3608]
[1724970026252,0.00025275,59339.0,59335.0,0.445046]
[1724970028047,0.00025275,59339.0,59335.0,0.3608]
[1724970028261,0.001,59337.0,59335.0,0.3608]
[1724970028744,0.084244,59336.0,59335.0,0.3608]
[1724970029251,0.084254,59329.0,59328.0,0.00025275]
[1724970031145,0.084254,59329.0,59328.0,0.00725275]
[1724970031644,0.085254,59329.0,59328.0,0.01325275]
[1724970031847,0.001,59329.0,59328.0,0.01325275]
[1724970032048,0.001,59329.0,59328.0,1.20314875]
[1724970032244,0.36105275,59339.0,59334.0,0.36]
[1724970032553,0.36105275,59339.0,59338.0,0.084241]
[1724970033251,0.36105275,59339.0,59333.0,0.3608]
[1724970033252,0.084247,59334.0,59333.0,0.3608]
[1724970033553,0.084254,59329.0,59328.0,0.00625275]
[1724970035047,0.2208,59337.0,59328.0,0.00625275]
[1724970035251,0.00525275,59339.0,59332.0,0.3608]
[1724970035451,0.00525275,59339.0,59334.0,0.084246]
[1724970035644,0.084245,59336.0,59332.0,0.3608]
[1724970035849,0.00525275,59339.0,59329.0,0.084254]
[1724970035850,0.084249,59333.0,59329.0,0.084254]
[1724970036060,0.084249,59333.0,59328.0,0.01425275]
[1724970036061,0.08425,59333.0,59328.0,0.01425275]
[1724970036243,0.00025275,59339.0,59328.0,0.01425275]
[1724970036446,0.3608,59335.0,59328.0,0.01425275]
[1724970036946,0.084254,59329.0,59328.0,0.01425275]
[1724970037147,0.084254,59329.0,59328.0,0.00725275]
[1724970038152,0.082254,59329.0,59328.0,0.00025275]
[1724970038747,0.083254,59329.0,59328.0,0.00725275]
[1724970038955,0.083254,59329.0,59328.0,0.01425275]
[1724970039959,0.001,59329.0,59328.0,0.01425275]
[1724970040149,0.001,59329.0,59328.0,0.09850875]
[1724970040452,0.169508,59329.0,59328.0,0.01425275]
[1724970041557,1.275148,59329.0,59328.0,0.01425275]
[1724970041952,0.084266,59321.0,59307.0,0.448985]
[1724970042254,0.084283,59309.0,59307.0,0.3608]
[1724970042647,0.084276,59314.0,59307.0,0.445085]
[1724970043249,0.00025275,59316.0,59307.0,0.3608]
[1724970043763,0.084287,59306.0,59305.0,0.00025275]
[1724970044654,0.084281,59311.0,59305.0,0.00025275]
[1724970044854,0.084281,59311.0,59308.0,0.3608]
[1724970045056,0.003,59309.0,59308.0,0.3608]
[1724970045662,0.084281,59311.0,59308.0,0.3608]
[1724970045852,0.093281,59311.0,59308.0,0.3608]
[1724970046459,0.084281,59310.0,59308.0,0.3608]
[1724970046652,0.084281,59310.0,59308.0,0.3628]
[1724970046653,0.025,59309.0,59308.0,0.3628]
[1724970046855,0.109283,59309.0,59308.0,0.3628]
[1724970047049,0.084293,59302.0,59301.0,0.3608]
[1724970049059,0.098293,59302.0,59301.0,0.3628]
[1724970049565,0.090293,59302.0,59301.0,0.3618]
[1724970049767,0.097293,59302.0,59301.0,0.3618]
[1724970049960,0.103293,59302.0,59301.0,0.3628]
[1724970050461,0.187586,59302.0,59301.0,0.002]
[1724970050863,0.187586,59302.0,59289.0,0.3608]
[1724970050864,0.08431,59290.0,59289.0,0.3608]
[1724970052152,0.08431,59290.0,59289.0,0.3628]
[1724970052359,0.08431,59290.0,59289.0,0.003]
[1724970053064,0.59031,59290.0,59282.0,0.3608]
[1724970053272,0.08432,59283.0,59282.0,0.3608]
[1724970053469,0.084316,59286.0,59282.0,0.3608]
[1724970053762,0.02995678,59293.0,59287.0,0.3608]
[1724970053763,0.084313,59288.0,59287.0,0.3608]
[1724970053966,0.21025296,59295.0,59287.0,0.3608]
[1724970053967,0.084307,59292.0,59287.0,0.3608]
[1724970054164,0.084307,59292.0,59288.0,0.2095]
[1724970054365,0.001,59290.0,59288.0,0.2095]
[1724970054664,0.08531,59290.0,59288.0,0.2095]
[1724970054871,0.001,59290.0,59288.0,0.2095]
[1724970055271,0.00025296,59295.0,59288.0,0.2095]
[1724970055272,0.00025296,59295.0,59288.0,0.2125]
[1724970055874,0.084311,59289.0,59288.0,0.005]
[1724970057968,0.084311,59289.0,59288.0,0.003]
[1724970058169,0.084311,59289.0,59288.0,0.004]
[1724970058568,0.084305,59294.0,59289.0,0.084311]
[1724970058769,0.00025296,59295.0,59292.0,0.3608]
[1724970059467,0.00025296,59295.0,59288.0,0.004]
[1724970059468,0.08431,59290.0,59288.0,0.004]
[1724970059669,0.084311,59289.0,59288.0,0.002]
[1724970059869,0.083311,59289.0,59288.0,0.002]
[1724970061168,0.084313,59288.0,59287.0,0.3608]
[1724970061367,0.081313,59288.0,59287.0,0.3608]
[1724970061765,0.29,59293.0,59287.0,0.3608]
[1724970061766,0.00025296,59295.0,59287.0,0.3608]
[1724970061972,0.00025296,59295.0,59293.0,0.3608]
[1724970062169,0.084304,59294.0,59293.0,0.3608]
[1724970062368,0.084304,59294.0,59288.0,0.004]
[1724970062369,0.084311,59289.0,59288.0,0.002]
[1724970062780,0.590311,59289.0,59288.0,0.002]
[1724970062975,0.084313,59288.0,59287.0,0.3678]
[1724970063178,0.084313,59288.0,59287.0,0.3648]
[1724970064482,0.082313,59288.0,59287.0,0.3608]
[1724970065273,0.079324,59280.0,59279.0,0.3608]
[1724970065973,0.076324,59280.0,59279.0,0.3608]
[1724970066672,0.077324,59280.0,59279.0,0.3688]
[1724970066982,0.001,59280.0,59279.0,0.453125]
[1724970067580,0.002,59280.0,59279.0,0.464125]
[1724970068477,0.084311,59290.0,59287.0,0.084313]
[1724970068878,0.00025296,59295.0,59287.0,0.084313]
[1724970068879,0.084311,59289.0,59287.0,0.084313]
[1724970069379,0.00025296,59295.0,59286.0,0.3608]
[1724970069380,0.084305,59293.0,59286.0,0.3608]
[1724970069571,0.084305,59293.0,59292.0,0.3608]
[1724970069780,0.3608,59301.0,59292.0,0.3608]
[1724970069781,0.0039,59310.0,59292.0,0.3608]
[1724970069974,0.05436903,59312.0,59302.0,0.445092]
[1724970069975,0.00232,59305.0,59302.0,0.445092]
[1724970070177,0.084277,59313.0,59304.0,0.29]
[1724970070384,0.084277,59313.0,59310.0,0.3608]
[1724970070584,0.3608,59318.0,59310.0,0.44508]
[1724970070780,0.084274,59315.0,59310.0,0.3608]
[1724970071087,0.084278,59312.0,59310.0,0.3608]
[1724970071274,0.084278,59312.0,59299.0,0.29]
[1724970071275,0.084283,59309.0,59298.0,0.3608]
[1724970071481,0.29,59306.0,59298.0,0.3608]
[1724970071880,0.084295,59300.0,59298.0,0.3608]
[1724970072882,0.084313,59288.0,59287.0,0.3608]
[1724970073084,0.29,59288.0,59279.0,0.05011779]
[1724970073295,0.084322,59282.0,59278.0,0.3608]
[1724970073590,0.7178,59287.0,59278.0,0.3608]
[1724970073787,0.084323,59281.0,59278.0,0.3608]
[1724970074294,0.084324,59280.0,59278.0,0.3608]
[1724970074585,0.084324,59280.0,59278.0,0.3718]
[1724970074890,0.081324,59280.0,59278.0,0.3718]
[1724970075083,0.34954961,59287.0,59278.0,0.3608]
[1724970075285,0.001,59281.0,59278.0,0.3718]
[1724970075483,0.001,59280.0,59278.0,0.3778]
[1724970075979,0.085324,59280.0,59278.0,0.3778]
[1724970076785,0.086324,59280.0,59278.0,0.3788]
[1724970076980,0.50608,59279.0,59278.0,0.3788]
[1724970077489,1.10608,59279.0,59278.0,0.3788]
[1724970077985,0.50608,59279.0,59278.0,0.3788]
[1724970078184,0.50708,59279.0,59278.0,0.3788]
[1724970078492,1.10708,59279.0,59278.0,0.3788]
[1724970078795,0.50808,59279.0,59278.0,0.3728]
[1724970079491,1.10808,59279.0,59278.0,0.3728]
[1724970079682,1.46888,59279.0,59266.0,0.05011779]
[1724970079887,0.3608,59269.0,59265.0,0.2163]
[1724970080086,0.3608,59269.0,59260.0,0.05011779]
[1724970080286,0.00025296,59273.0,59257.0,0.2196]
[1724970080287,0.00025296,59273.0,59266.0,0.3608]
[1724970080487,0.00025296,59273.0,59266.0,0.084344]
[1724970080679,0.08458696,59273.0,59266.0,0.084344]
[1724970080994,0.08458696,59273.0,59266.0,0.096344]
[1724970081286,0.084335,59272.0,59266.0,0.098344]
[1724970081495,0.00025296,59273.0,59266.0,0.098344]
[1724970081496,0.00025296,59273.0,59272.0,0.084335]
[1724970082199,0.3608,59286.0,59278.0,0.084327]
[1724970082495,0.3608,59297.0,59285.0,0.7208]
[1724970082686,0.3608,59297.0,59286.0,0.217]
[1724970082997,0.3608,59297.0,59291.0,0.084308]
[1724970084090,0.3608,59292.0,59288.0,0.00025296]